lending/lending_fUSD_20250425
["ID","MTS","AMOUNT","RATE_DAILY","PERIOD"]
[358946745,1745581552012,1000.0,0.00037808,60]
[358946749,1745581693898,-321.44,0.000198,2]
[358946750,1745581709486,-178.56,0.000198,2]
[358946751,1745581724419,-248.43,0.000198,2]
[358946772,1745581832112,-572.36410332,0.00019888,2]
[358946773,1745581832134,-274.72355968,0.00019888,2]
[358946774,1745581832155,-1085.87651508,0.000199,2]
[358946775,1745581832176,-207.4,0.00019988,2]
[358946776,1745581832195,-500.0,0.00019999,2]
[358946777,1745581832205,-442.90882184,0.00019999,2]
[358946778,1745581832215,-4489.82257907,0.0002,2]
[358946779,1745581832232,-48611.42411205,0.0002,2]
[358946793,1745581838095,-66020.5738496,0.0002,2]
[358946794,1745581838305,-115833.10276176,0.0002,2]
[358946804,1745581840554,-400.07483383,0.0002,2]
[358946805,1745581840607,-88791.48288393,0.0002,2]
[358946806,1745581840619,-58935.31621665,0.0002,2]
[358946807,1745581840712,-3672.6988002,0.0002,2]
[358946821,1745581843282,-1776.20347505,0.0002,2]
[358946822,1745581843294,-3212.87787011,0.0002,2]
[358946823,1745581843304,-150.0,0.0002,2]
[358946824,1745581843313,-3526.33287466,0.0002,2]
[358946825,1745581843323,-181.603,0.0002,2]
[358946826,1745581843332,-7911.27061523,0.0002,2]
[358946827,1745581843343,-10641.99270635,0.0002,2]
[358946834,1745581846055,-243.90784237,0.0002,2]
[358946836,1745581846065,-17846.25174615,0.00020835,2]
[358946840,1745581846108,-396.31294012,0.00020835,2]
[358946841,1745581846217,-1042.33864056,0.00020835,2]
[358946842,1745581846622,-629.60691082,0.00020835,2]
[358946843,1745581846632,-21.58058918,0.00021357,2]
[358946846,1745582014986,309.42976458,0.000378,120]
[358946847,1745582069939,193.45,0.00035221,120]
[358946851,1745582357244,1000.0,0.00037808,60]
[358946853,1745582759785,250.0,0.00017,2]
[358946855,1745582760867,300.0,0.00019,2]
[358946943,1745583014104,-150.0,0.00020516,2]
[358946944,1745583023000,-466.34,0.00020516,2]
[358946945,1745583026251,-150.0,0.00020516,2]
[358946946,1745583030072,-249.199682,0.00020516,2]
[358946953,1745583032668,-4553.312318,0.00020516,2]
[358946955,1745583032677,-1134.0,0.00020516,2]
[358946957,1745583032688,-350.0,0.00021,2]
[358946959,1745583032698,-186.69497425,0.00021356,2]
[358946961,1745583032708,-815.8,0.00021386,2]
[358946963,1745583032717,-150.0,0.000217,2]
[358946965,1745583032727,-250.0,0.0002189,2]
[358946967,1745583032737,-200.0,0.0002189,2]
[358946969,1745583032747,-250.0,0.0002189,2]
[358946971,1745583032757,-1112.39270256,0.000219,2]
[358946973,1745583032771,-1387.60729744,0.000219,2]
[358946975,1745583032781,-764.30877131,0.00022,7]
[358946977,1745583032791,-1000.0,0.00022109,2]
[358946979,1745583032800,-300.0,0.00022303,2]
[358946981,1745583032809,-2157.27422384,0.00022303,2]
[358947024,1745583033272,-729.50577616,0.00022303,2]
[358947025,1745583033283,-3067.1,0.00022304,2]
[358947026,1745583033293,-150.0,0.00022304,7]
[358947027,1745583033303,-2500.0,0.00022398,2]
[358947028,1745583033312,-5314.4822563,0.000224,2]
[358947029,1745583033321,-2387.46545989,0.00022471,2]
[358947030,1745583033331,-181.604,0.00022484,2]
[358947031,1745583033340,-4616.6831271,0.00022498,2]
[358947032,1745583033352,-1150.059528,0.00022498,2]
[358947039,1745583033520,-23142.07679839,0.00022498,2]
[358947040,1745583033532,-2748.28972202,0.00022498,2]
[358947041,1745583033544,-3759.74082449,0.00022498,2]
[358947042,1745583033554,-983.90453019,0.00022708,2]
[358947043,1745583033564,-257.516,0.00022715,2]
[358947044,1745583033574,-826.142,0.00022715,2]
[358947045,1745583033584,-554.052,0.00022715,2]
[358947046,1745583033594,-921.223,0.00022715,2]
[358947047,1745583033604,-207.4,0.00022738,2]
[358947048,1745583033614,-1313.60152469,0.000229,4]
[358947049,1745583033625,-400.0,0.00023,2]
[358947050,1745583033634,-250.0,0.00023072,2]
[358947052,1745583033645,-226.3,0.00023198,2]
[358947055,1745583033656,-1069.97,0.00023265,2]
[358947057,1745583033666,-748.68,0.00023308,2]
[358947059,1745583033679,-1985.12,0.00023316,2]
[358947061,1745583033689,-714.09014875,0.00023378,2]
[358947062,1745583033773,-3223.68985125,0.00023378,2]
[358947063,1745583033784,-283.1,0.00023404,2]
[358947064,1745583033794,-570.55,0.00023421,2]
[358947065,1745583033805,-285.47,0.00023421,2]
[358947066,1745583033815,-193.45,0.00023481,2]
[358947067,1745583033826,-168.0,0.00023492,2]
[358947068,1745583033836,-668.7,0.00023516,2]
[358947069,1745583033846,-815.8,0.0002365,2]
[358947070,1745583033856,-166.66,0.00023805,2]
[358947071,1745583033866,-198.51,0.00023836,2]
[358947072,1745583033877,-1313.60152448,0.00023934,5]
[358947073,1745583033887,-215.0738,0.00024107,2]
[358947074,1745583033896,-471.417954,0.00024221,2]
[358947075,1745583033906,-417.0,0.00024228,2]
[358947076,1745583033915,-267.5444518,0.00024551,2]
[358947077,1745583033925,-977.28886359,0.00024687,2]
[358947078,1745583033935,-500.0,0.00024803,2]
[358947079,1745583033944,-160.03617529,0.00024803,2]
[358947080,1745583033954,-23154.8937971,0.00024804,2]
[358947081,1745583033964,-9955.0592016,0.00024821,2]
[358947082,1745583033973,-918.9094098,0.00024838,2]
[358947083,1745583033983,-1714.5194696,0.00024838,2]
[358947084,1745583033992,-2575.4923889,0.00024855,2]
[358947085,1745583034002,-1000.0,0.00024872,2]
[358947086,1745583034012,-501.0,0.000249,2]
[358947087,1745583034022,-1313.60152448,0.00024969,5]
[358947088,1745583034032,-173.34,0.00025088,2]
[358947089,1745583034043,-223.0315306,0.00025476,2]
[358947090,1745583034053,-815.8,0.00025914,2]
[358947091,1745583034064,-977.28886356,0.00025982,2]
[358947092,1745583034074,-1313.60152448,0.00026003,6]
[358947093,1745583034084,-165.83,0.00026093,2]
[358947094,1745583034094,-231.28369723,0.00026845,2]
[358947095,1745583034103,-1313.60152448,0.00027038,7]
[358947096,1745583034113,-450.48,0.00027137,2]
[358947097,1745583034123,-359.03,0.00027137,2]
[358947098,1745583034132,-450.48,0.00027137,2]
[358947099,1745583034142,-351.29,0.00027137,2]
[358947100,1745583034152,-450.48,0.00027137,2]
[358947101,1745583034162,-327.87,0.00027137,2]
[358947102,1745583034172,-351.29,0.00027137,2]
[358947103,1745583034181,-450.48,0.00027137,2]
[358947104,1745583034191,-351.29,0.00027137,2]
[358947105,1745583034201,-450.48,0.00027137,2]
[358947106,1745583034210,-351.29,0.00027137,2]
[358947107,1745583034220,-461.83,0.00027137,2]
[358947108,1745583034229,-153.91,0.00027137,2]
[358947109,1745583034239,-150.0,0.00027137,2]
[358947110,1745583034249,-351.29,0.00027137,2]
[358947111,1745583034259,-150.0,0.00027137,2]
[358947112,1745583034270,-351.29,0.00027171,2]
[358947113,1745583034280,-351.29,0.00027171,2]
[358947114,1745583034290,-977.28886356,0.00027276,2]
[358947115,1745583034299,-500.0,0.00027397,2]
[358947116,1745583034309,-500.0,0.00027397,2]
[358947117,1745583034319,-492.06657986,0.00027397,2]
[358947118,1745583034329,-700.0,0.00027397,2]
[358947119,1745583034339,-700.0,0.00027397,2]
[358947120,1745583034348,-700.0,0.00027397,2]
[358947121,1745583034358,-700.0,0.00027397,2]
[358947122,1745583034367,-700.0,0.00027397,2]
[358947123,1745583034377,-1102.78563424,0.000274,2]
[358947124,1745583034391,-565.32665385,0.000274,2]
[358947125,1745583034400,-536.77,0.00027425,30]
[358947126,1745583034411,-1000.0,0.00027636,2]
[358947127,1745583034421,-1313.60152448,0.00028072,7]
[358947128,1745583034431,-815.8,0.00028178,2]
[358947129,1745583034440,-239.84119403,0.00028214,2]
[358947130,1745583034450,-977.28886356,0.00028571,2]
[358947131,1745583034462,-1313.60152448,0.00029107,8]
[358947132,1745583034472,-248.71531821,0.00029583,2]
[358947133,1745583034483,-977.28886356,0.00029865,2]
[358947134,1745583034493,-499.9,0.0003,7]
[358947135,1745583034503,-301.0,0.0003,7]
[358947136,1745583034513,-17639.61847307,0.0003,5]
[358947144,1745583038388,-1910.23488341,0.0003,5]
[358947145,1745583038440,-705.32600409,0.0003,5]
[358947146,1745583038545,-1120.1197219,0.0003,5]
[358947147,1745583038558,-14646.56619207,0.0003,5]
[358947148,1745583038567,-1313.60152448,0.00030141,9]
[358947149,1745583038577,-165.83,0.00030399,2]
[358947150,1745583038588,-1000.0,0.00030399,2]
[358947151,1745583038597,-815.8,0.00030442,2]
[358947153,1745583038606,-161.85,0.00030481,2]
[358947155,1745583038616,-150.0,0.00030481,2]
[358947157,1745583038626,-161.85,0.00030481,2]
[358947159,1745583038636,-150.0,0.00030481,2]
[358947161,1745583038646,-161.55,0.00030481,2]
[358947163,1745583038655,-150.0,0.00030481,2]
[358947165,1745583038665,-150.0,0.00030481,2]
[358947167,1745583038675,-150.0,0.00030481,2]
[358947170,1745583038685,-150.0,0.00030481,2]
[358947172,1745583038695,-257.91778498,0.00030952,2]
[358947174,1745583038705,-977.28886356,0.0003116,2]
[358947176,1745583038714,-1313.60152448,0.00031176,9]
[358947178,1745583038724,-11513.0,0.000317,2]
[358947180,1745583038734,-1313.60152448,0.0003221,10]
[358947182,1745583038743,-150.0,0.00032277,7]
[358947184,1745583038753,-267.46074303,0.00032321,2]
[358947186,1745583038763,-150.0,0.00032351,7]
[358947188,1745583038773,-150.0,0.00032426,7]
[358947190,1745583038783,-977.28886356,0.00032454,2]
[358947192,1745583038793,-1465.65297937,0.000325,3]
[358947195,1745583038805,-810.149,0.000325,3]
[358947223,1745583040663,-3290.19802063,0.000325,3]
[358947224,1745583040674,-150.0,0.00032501,7]
[358947225,1745583040684,-150.0,0.00032576,7]
[358947226,1745583040694,-150.0,0.0003265,7]
[358947227,1745583040703,-509.93,0.000327,3]
[358947228,1745583040713,-815.8,0.00032706,2]
[358947229,1745583040723,-150.0,0.00032725,7]
[358947230,1745583040734,-570.55,0.0003279,2]
[358947231,1745583040744,-150.0,0.000328,7]
[358947232,1745583040754,-150.0,0.00032874,7]
[358947233,1745583040764,-153.24,0.00032877,2]
[358947234,1745583040774,-150.0,0.00032949,7]
[358947235,1745583040784,-509.93,0.00033,3]
[358947236,1745583040794,-150.0,0.00033024,7]
[358947237,1745583040809,-150.0,0.00033099,7]
[358947247,1745583041120,-1000.0,0.00033163,2]
[358947249,1745583041131,-150.0,0.00033173,7]
[358947251,1745583041141,-1313.60152448,0.00033245,11]
[358947252,1745583041152,-150.0,0.00033248,7]
[358947253,1745583041162,-509.93,0.000333,3]
[358947254,1745583041172,-5566.0,0.000333,5]
[358947255,1745583041183,-150.0,0.00033323,7]
[358947256,1745583041193,-150.0,0.00033397,7]
[358947257,1745583041203,-150.0,0.00033472,7]
[358947258,1745583041213,-150.51,0.000335,7]
[358947259,1745583041223,-150.0,0.00033547,7]
[358947260,1745583041232,-509.93,0.000336,3]
[358947261,1745583041241,-70.64179833,0.00033622,7]
[358947262,1745583041253,-79.35820167,0.00033622,7]
[358947263,1745583041263,-277.35679052,0.0003369,2]
[358947264,1745583041272,-150.0,0.00033696,7]
[358947265,1745583041283,-977.28886356,0.00033749,2]
[358947266,1745583041294,-150.0,0.00033771,7]
[358947267,1745583041306,-150.0,0.00033846,7]
[358947268,1745583041316,-150.0,0.0003392,7]
[358947269,1745583041325,-150.0,0.00033995,7]
[358947270,1745583041335,-509.93,0.00034,3]
[358947271,1745583041346,-150.0,0.0003407,7]
[358947272,1745583041358,-150.0,0.00034145,7]
[358947273,1745583041368,-150.0,0.00034219,7]
[358947274,1745583041377,-150.0,0.00034247,2]
[358947275,1745583041391,-500.0,0.00034247,2]
[358947276,1745583041401,-500.0,0.00034247,2]
[358947277,1745583041411,-150.0,0.00034247,2]
[358947278,1745583041421,-150.0,0.00034247,2]
[358947279,1745583041431,-500.0,0.00034247,2]
[358947280,1745583041442,-55.2976829,0.00034247,2]
[358947281,1745583041456,-122.80460899,0.00034247,2]
[358947282,1745583041466,-155.25582875,0.00034247,2]
[358947283,1745583041476,-500.0,0.00034247,2]
[358947284,1745583041485,-437.0,0.00034247,2]
[358947285,1745583041495,-500.0,0.00034247,2]
[358947286,1745583041504,-1313.60152448,0.00034279,11]
[358947287,1745583041514,-150.0,0.00034294,7]
[358947288,1745583041525,-509.93,0.000343,3]
[358947289,1745583041536,-150.0,0.00034302,2]
[358947290,1745583041545,-500.0,0.00034302,2]
[358947291,1745583041555,-500.0,0.00034302,2]
[358947292,1745583041565,-150.0,0.00034302,2]
[358947293,1745583041574,-150.0,0.00034302,2]
[358947294,1745583041584,-500.0,0.00034302,2]
[358947295,1745583041594,-500.0,0.00034302,2]
[358947296,1745583041604,-437.0,0.00034302,2]
[358947297,1745583041613,-500.0,0.00034302,2]
[358947298,1745583041623,-150.0,0.00034357,2]
[358947299,1745583041633,-430.51920396,0.00034357,2]
[358947300,1745583041643,-500.0,0.00034357,2]
[358947301,1745583041653,-150.0,0.00034357,2]
[358947302,1745583041663,-150.0,0.00034357,2]
[358947303,1745583041672,-500.0,0.00034357,2]
[358947304,1745583041682,-500.0,0.00034357,2]
[358947305,1745583041691,-437.0,0.00034357,2]
[358947306,1745583041701,-500.0,0.00034357,2]
[358947307,1745583041712,-150.0,0.00034369,7]
[358947308,1745583041722,-293.26636695,0.00034411,2]
[358947309,1745583041732,-500.0,0.00034411,2]
[358947310,1745583041742,-247.63057937,0.00034411,2]
[358947311,1745583041753,-150.0,0.00034411,2]
[358947312,1745583041762,-500.0,0.00034411,2]
[358947313,1745583041772,-500.0,0.00034411,2]
[358947314,1745583041781,-437.0,0.00034411,2]
[358947315,1745583041791,-500.0,0.00034411,2]
[358947316,1745583041801,-150.0,0.00034443,7]
[358947317,1745583041811,-500.0,0.00034466,2]
[358947318,1745583041820,-150.0,0.00034466,2]
[358947319,1745583041830,-500.0,0.00034466,2]
[358947320,1745583041839,-500.0,0.00034466,2]
[358947321,1745583041849,-437.0,0.00034466,2]
[358947322,1745583041859,-500.0,0.00034466,2]
[358947323,1745583041869,-150.0,0.00034518,7]
[358947324,1745583041879,-249.39960001,0.00034521,2]
[358947325,1745583041888,-498.08926044,0.00034521,2]
[358947326,1745583041898,-500.0,0.00034521,2]
[358947327,1745583041907,-110.3318049,0.00034521,2]
[358947328,1745583041920,-326.6681951,0.00034521,2]
[358947329,1745583041929,-500.0,0.00034521,2]
[358947330,1745583041939,-500.0,0.00034576,2]
[358947331,1745583041951,-437.0,0.00034576,2]
[358947332,1745583041962,-500.0,0.00034576,2]
[358947333,1745583041972,-150.0,0.00034593,7]
[358947334,1745583041985,-509.93,0.000346,3]
[358947335,1745583041995,-165.59274643,0.00034631,2]
[358947336,1745583042006,-437.0,0.00034631,2]
[358947337,1745583042016,-500.0,0.00034631,2]
[358947338,1745583042026,-150.0,0.00034668,7]
[358947339,1745583042035,-437.0,0.00034685,2]
[358947340,1745583042045,-500.0,0.00034685,2]
[358947341,1745583042056,-4902.48117402,0.0003473,2]
[358947342,1745583042066,-437.0,0.0003474,2]
[358947343,1745583042076,-500.0,0.0003474,2]
[358947344,1745583042085,-150.0,0.00034742,7]
[358947345,1745583042095,-4013.3464508,0.00034775,2]
[358947346,1745583042254,-0.12033845,0.00034775,2]
[358947347,1745583042266,-1314.62257658,0.00034775,2]
[358947348,1745583042294,-336.0581857,0.00034775,2]
[358947349,1745583042307,-4140.81479651,0.00034775,2]
[358947350,1745583042317,-4902.48117402,0.00034785,2]
[358947351,1745583042327,-297.71465947,0.0003479,2]
[358947352,1745583042346,-565.32665385,0.0003479,2]
[358947353,1745583042359,-4039.4398607,0.0003479,2]
[358947354,1745583042370,-437.0,0.00034795,2]
[358947355,1745583042380,-500.0,0.00034795,2]
[358947356,1745583042395,-914.44,0.000348,31]
[358947357,1745583042405,-914.44,0.000348,31]
[358947358,1745583042415,-914.44,0.000348,31]
[358947359,1745583042426,-914.44,0.000348,31]
[358947360,1745583042436,-914.44,0.000348,31]
[358947361,1745583042446,-914.44,0.000348,31]
[358947362,1745583042455,-914.44,0.000348,31]
[358947363,1745583042467,-914.44,0.000348,31]
[358947364,1745583042477,-914.44,0.000348,31]
[358947365,1745583042487,-914.44,0.000348,31]
[358947366,1745583042497,-914.44,0.000348,31]
[358947367,1745583042507,-914.44,0.000348,31]
[358947368,1745583042517,-150.0,0.00034817,7]
[358947369,1745583042528,-437.0,0.0003485,2]
[358947370,1745583042538,-500.0,0.0003485,2]
[358947371,1745583042548,-150.0,0.00034892,7]
[358947372,1745583042559,-509.93,0.000349,3]
[358947373,1745583042569,-162.59671409,0.00034904,30]
[358947374,1745583042579,-437.0,0.00034905,2]
[358947375,1745583042589,-500.0,0.00034905,2]
[358947376,1745583042599,-437.0,0.00034959,2]
[358947377,1745583042609,-500.0,0.00034959,2]
[358947378,1745583042619,-150.0,0.00034966,7]
[358947379,1745583042628,-815.8,0.0003497,2]
[358947380,1745583042638,-4902.48117402,0.0003499,2]
[358947381,1745583042647,-3025.212,0.00035,2]
[358947382,1745583042657,-437.0,0.00035014,2]
[358947383,1745583042667,-500.0,0.00035014,2]
[358947384,1745583042677,-150.0,0.00035041,7]
[358947385,1745583042687,-977.28886356,0.00035043,2]
[358947386,1745583042697,-287.61899177,0.00035059,2]
[358947387,1745583042707,-437.0,0.00035069,2]
[358947388,1745583042718,-564.0,0.00035069,2]
[358947389,1745583042728,-162.59671409,0.00035096,30]
[358947390,1745583042738,-150.0,0.00035116,7]
[358947391,1745583042748,-437.0,0.00035124,2]
[358947392,1745583042757,-437.0,0.00035179,2]
[358947393,1745583042767,-150.0,0.00035191,7]
[358947394,1745583042778,-4902.48117402,0.00035223,2]
[358947395,1745583042787,-437.0,0.00035233,2]
[358947396,1745583042797,-150.0,0.00035265,7]
[358947397,1745583042807,-162.59671409,0.00035288,30]
[358947398,1745583042818,-437.0,0.00035288,2]
[358947399,1745583042828,-509.93,0.000353,3]
[358947400,1745583042837,-1313.60152448,0.00035314,12]
[358947401,1745583042847,-150.0,0.0003534,7]
[358947402,1745583042857,-437.0,0.00035343,2]
[358947403,1745583042866,-437.0,0.00035398,2]
[358947404,1745583042876,-150.0,0.00035415,7]
[358947405,1745583042886,-437.0,0.00035452,2]
[358947406,1745583042895,-162.59671409,0.00035479,30]
[358947407,1745583042905,-313.56234153,0.00035484,2]
[358947408,1745583042915,-150.0,0.00035489,7]
[358947409,1745583042925,-4902.48117402,0.00035497,2]
[358947410,1745583042936,-180.92928944,0.00035506,8]
[358947411,1745583042945,-442.72091637,0.00035507,2]
[358947412,1745583042956,-394.0,0.00035556,14]
[358947413,1745583042966,-150.0,0.00035564,7]
[358947414,1745583042976,-24512.4058701,0.00035565,2]
[358947415,1745583042986,-313.5623415,0.00035579,2]
[358947416,1745583042995,-114682.77843924,0.00035585,2]
[358947417,1745583043004,-185.54803796,0.00035585,2]
[358947418,1745583043014,-58829.7740882,0.00035585,2]
[358947419,1745583043025,-50537.23400837,0.00035586,2]
[358947461,1745583044537,-249.199682,0.00021591,2]
[358947462,1745583044547,-1212.8238538,0.00035586,2]
[358947463,1745583044559,-75458.21750622,0.00035586,2]
[358947464,1745583044594,-1460.51601556,0.00035586,2]
[358947465,1745583044606,-3567.3372,0.00035586,2]
[358947466,1745583044648,-19740.78781105,0.00035586,2]
[358947467,1745583044658,-138126.104739,0.00035586,2]
[358947468,1745583044668,-183.0,0.00035589,2]
[358947469,1745583044677,-299.0,0.00035589,2]
[358947470,1745583044687,-221.13,0.00035595,2]
[358947471,1745583044697,-221.13,0.00035595,2]
[358947472,1745583044706,-221.13,0.00035595,2]
[358947473,1745583044716,-221.13,0.00035595,2]
[358947474,1745583044728,-14707.4435221,0.00035596,2]
[358947475,1745583044738,-115105.087282,0.00035596,2]
[358947476,1745583044748,-202.0963226,0.00035596,2]
[358947477,1745583044758,-23021.0174565,0.00035596,2]
[358947478,1745583044767,-509.93,0.000356,3]
[358947479,1745583044778,-500.0,0.00035605,10]
[358947480,1745583044788,-500.0,0.00035605,10]
[358947481,1745583044797,-500.0,0.00035605,10]
[358947482,1745583044807,-500.0,0.00035605,10]
[358947483,1745583044816,-137715.83279641,0.00035606,2]
[358947484,1745583044836,-107897.35088614,0.00035606,2]
[358947485,1745583044848,-99702.07816445,0.00035606,2]
[358947486,1745583044857,-152.888685,0.00035606,7]
[358947487,1745583044867,-250.60127,0.00035606,7]
[358947488,1745583044876,-151.540721,0.00035606,7]
[358947489,1745583044886,-151.0,0.00035606,7]
[358947490,1745583044895,-247.72244,0.00035606,7]
[358947491,1745583044905,-151.0,0.00035606,7]
[358947492,1745583044915,-151.0,0.00035606,7]
[358947493,1745583044924,-151.0,0.00035606,7]
[358947494,1745583044934,-151.0,0.00035606,7]
[358947495,1745583044944,-151.0,0.00035606,7]
[358947496,1745583044954,-151.0,0.00035606,7]
[358947497,1745583044963,-151.0,0.00035606,7]
[358947498,1745583044973,-151.0,0.00035606,7]
[358947499,1745583044983,-151.0,0.00035606,7]
[358947500,1745583044993,-272.620426,0.00035606,7]
[358947501,1745583045002,-151.0,0.00035606,7]
[358947502,1745583045012,-272.620426,0.00035606,7]
[358947503,1745583045022,-155.583641,0.00035606,7]
[358947504,1745583045032,-151.0,0.00035606,7]
[358947505,1745583045042,-151.0,0.00035606,7]
[358947506,1745583045051,-179.531903,0.00035606,7]
[358947507,1745583045061,-179.531903,0.00035606,7]
[358947508,1745583045071,-154.213775,0.00035606,7]
[358947509,1745583045081,-151.0,0.00035606,7]
[358947510,1745583045091,-151.0,0.00035606,7]
[358947511,1745583045100,-151.0,0.00035606,7]
[358947512,1745583045110,-151.0,0.00035606,7]
[358947513,1745583045119,-604.126834,0.00035606,7]
[358947514,1745583045129,-604.126834,0.00035606,7]
[358947515,1745583045138,-500.0,0.00035615,10]
[358947516,1745583045148,-200.16374672,0.00035615,10]
[358947517,1745583045157,-500.0,0.00035615,10]
[358947518,1745583045166,-540.02573849,0.00035615,10]
[358947519,1745583045175,-500.0,0.00035615,10]
[358947520,1745583045185,-500.0,0.00035615,10]
[358947521,1745583045194,-500.0,0.00035615,10]
[358947522,1745583045204,-666.0,0.00035615,10]
[358947523,1745583045213,-666.0,0.00035615,10]
[358947524,1745583045222,-151.0,0.00035616,7]
[358947525,1745583045231,-151.0,0.00035616,7]
[358947526,1745583045240,-151.0,0.00035616,7]
[358947527,1745583045249,-159.273322,0.00035616,2]
[358947528,1745583045259,-585.740612,0.00035616,2]
[358947529,1745583045268,-585.740612,0.00035616,2]
[358947530,1745583045279,-151.0,0.00035616,7]
[358947531,1745583045289,-151.0,0.00035616,7]
[358947532,1745583045298,-151.0,0.00035616,7]
[358947533,1745583045307,-159.708222,0.00035616,7]
[358947534,1745583045317,-151.0,0.00035616,7]
[358947535,1745583045326,-151.0,0.00035616,7]
[358947536,1745583045336,-151.0,0.00035616,7]
[358947537,1745583045345,-151.0,0.00035616,7]
[358947538,1745583045354,-516.71601346,0.00035616,2]
[358947539,1745583045363,-500.0,0.00035616,2]
[358947540,1745583045373,-534.89186622,0.00035616,2]
[358947541,1745583045384,-384.90139251,0.00035616,2]
[358947542,1745583045395,-500.0,0.00035616,2]
[358947543,1745583045404,-169.583062,0.00035616,2]
[358947544,1745583045413,-500.0,0.00035616,2]
[358947545,1745583045423,-500.0,0.00035616,2]
[358947546,1745583045434,-383.32851248,0.00035616,2]
[358947547,1745583045444,-514.71457788,0.00035616,2]
[358947548,1745583045453,-500.0,0.00035616,2]
[358947549,1745583045464,-500.0,0.00035616,2]
[358947550,1745583045474,-151.0,0.00035616,7]
[358947551,1745583045484,-151.0,0.00035616,7]
[358947552,1745583045494,-500.0,0.00035616,2]
[358947553,1745583045504,-500.0,0.00035616,2]
[358947554,1745583045515,-503.7897896,0.00035616,2]
[358947555,1745583045525,-500.0,0.00035616,2]
[358947556,1745583045536,-500.0,0.00035616,2]
[358947557,1745583045546,-555.45849129,0.00035616,2]
[358947558,1745583045556,-535.6247154,0.00035616,2]
[358947559,1745583045565,-151.0,0.00035616,7]
[358947560,1745583045575,-151.0,0.00035616,7]
[358947561,1745583045584,-151.0,0.00035616,7]
[358947562,1745583045594,-500.0,0.00035616,2]
[358947563,1745583045604,-151.0,0.00035616,7]
[358947564,1745583045613,-151.0,0.00035616,7]
[358947565,1745583045624,-151.0,0.00035616,7]
[358947566,1745583045633,-156.363978,0.00035616,7]
[358947567,1745583045643,-500.0,0.00035616,2]
[358947568,1745583045652,-500.0,0.00035616,2]
[358947569,1745583045661,-500.0,0.00035616,2]
[358947570,1745583045671,-151.0,0.00035616,7]
[358947571,1745583045680,-151.0,0.00035616,7]
[358947572,1745583045690,-218.99431,0.00035616,7]
[358947573,1745583045699,-500.0,0.00035616,2]
[358947574,1745583045709,-500.0,0.00035616,2]
[358947575,1745583045718,-503.68396774,0.00035616,2]
[358947576,1745583045728,-325.90996746,0.00035616,2]
[358947577,1745583045737,-500.0,0.00035616,2]
[358947578,1745583045746,-605.81017872,0.00035616,2]
[358947579,1745583045756,-500.0,0.00035616,2]
[358947580,1745583045765,-511.77101552,0.00035616,2]
[358947581,1745583045776,-500.0,0.00035616,2]
[358947582,1745583045785,-500.0,0.00035616,2]
[358947583,1745583045795,-511.70808864,0.00035616,2]
[358947584,1745583045804,-509.47728225,0.00035616,2]
[358947585,1745583045813,-1012.67,0.00035616,2]
[358947586,1745583045823,-520.05410765,0.00035616,2]
[358947587,1745583045835,-500.0,0.00035616,2]
[358947588,1745583045844,-500.0,0.00035616,2]
[358947589,1745583045854,-500.0,0.00035616,2]